[Event "DVM U12 2024"]
[Site "Heidelberg"]
[Date "2024.12.29"]
[Round "5"]
[White "Tomovski, Leon"]
[Black "Rogner, Alexander Luis"]
[Result "0-1"]
[ECO "C50"]
[WhiteElo "1569"]
[BlackElo "1674"]
[Annotator "NA"]
[PlyCount "92"]
[EventDate "2024.12.23"]
[EventType "team-tourn"]
[EventRounds "7"]
[EventCountry "GER"]
[SourceTitle "playchess.com"]
[Source "ChessBase"]
[SourceQuality "1"]
[TimeControl "40/5400+30:1800+30"]

1. e4 {[%emt 0:00:01]} e5 {[%emt 0:00:06]} 2. Nf3 {[%emt 0:00:02]} Nc6 {[%emt 0:00:09]} 3. Bc4 {[%emt 0:00:05]} Bc5 {[%emt 0:00:05]} 4. O-O {[%emt 0:00:05]} Nf6 {[%emt 0:00:25]} 5. Nc3 {[%emt 0:00:11]} d6 {[%emt 0:00:34]} 6. h3 {[%emt 0:00:06]} O-O {[%emt 0:00:26]} 7. d3 {[%emt 0:00:06]} h6 {[%emt 0:00:05]} 8. Be3 {[%emt 0:00:11]} Bb6 {[%emt 0:00:16]} 9. Qd2 {[%emt 0:01:31]} Be6 {[%emt 0:00:37]} 10. Bb3 {[%emt 0:00:11]} Qe7 {[%emt 0:04:44]} 11. Nd5 {[%emt 0:00:31]} Bxd5 {[%emt 0:00:19]} 12. Bxd5 {[%emt 0:00:11]} Nxd5 {[%emt 0:00:19]} 13. exd5 {[%emt 0:00:06]} Nd8 {[%emt 0:00:50]} 14. d4 {[%emt 0:01:29]} e4 {[%emt 0:19:20]} 15. Nh2 {[%emt 0:00:37]} f5 {[%emt 0:00:11]} 16. f3 {[%emt 0:10:03]} c6 {[%emt 0:11:33]} 17. dxc6 {[%emt 0:00:00]} Nxc6 {[%emt 0:00:15]} 18. fxe4 {[%emt 0:00:00]} Qxe4 {[%emt 0:00:25]} 19. c3 {[%emt 0:00:00]} Qe6 {[%emt 0:06:01]} 20. Rf3 {[%emt 0:00:00]} d5 {[%emt 0:02:34]} 21. Re1 {[%emt 0:00:00]} Qg6 {[%emt 0:00:21]} 22. Bf4 {[%emt 0:00:00]} Kh7 {[%emt 0:01:59]} 23. Rg3 {[%emt 0:00:00]} Qf6 {[%emt 0:00:25]} 24. Nf3 {[%emt 0:00:00]} Rg8 {[%emt 0:06:58]} 25. Ne5 {[%emt 0:00:00]} g5 {[%emt 0:05:10]} 26. Nd7 {[%emt 0:00:00]} Qd8 {[%emt 0:02:11]} 27. Nxb6 {[%emt 0:00:00]} axb6 {[%emt 0:02:09]} 28. Be5 {[%emt 0:00:00]} Nxe5 {[%emt 0:02:59]} 29. dxe5 {[%emt 0:00:00]} Qe7 {[%emt 0:14:24]} 30. Rd3 {[%emt 0:02:03]} Qc5+ {[%emt 0:00:39]} 31. Kh1 {[%emt 0:00:13]} Rad8 {[%emt 0:04:41]} 32. e6 {[%emt 0:01:03]} Rge8 {[%emt 0:00:19]} 33. b4 {[%emt 0:00:45]} Qd6 {[%emt 0:03:09]} 34. Qf2 {[%emt 0:00:16]} Kg6 {[%emt 0:00:31]} 35. g4 {[%emt 0:00:23]} f4 {[%emt 0:01:39]} 36. Qc2 {[%emt 0:00:51]} Kf6 {[%emt 0:00:09]} 37. Rd4 {[%emt 0:00:49]} Rxe6 {[%emt 0:00:42]} 38. Qf5+ {[%emt 0:00:12]} Ke7 {[%emt 0:00:18]} 39. Qh7+ {[%emt 0:02:13]} Kf8 {[%emt 0:01:43]} 40. Qh8+ {[%emt 0:00:16]} Kf7 {[%emt 0:02:15]} 41. Qh7+ {[%emt 0:30:21]} Kf8 {[%emt 0:30:25]} 42. Red1 {[%emt 0:00:26]} Qe5 {[%emt 0:06:00]} 43. Rxd5 {[%emt 0:01:18]} Rxd5 {[%emt 0:00:45]} 44. Rxd5 {[%emt 0:00:44]} Qe1+ {[%emt 0:01:01]} 45. Kg2 {[%emt 0:00:37]} Re2+ {[%emt 0:00:13]} 46. Kf3 {[%emt 0:00:04]} Qf2# {[%emt 0:00:08]} 0-1

[Event "DVM U12 2024"]
[Site "Heidelberg"]
[Date "2024.12.29"]
[Round "5"]
[White "Liu, Zichen"]
[Black "Cetinalp, Poyraz"]
[Result "1-0"]
[ECO "B30"]
[WhiteElo "1563"]
[BlackElo "1530"]
[Annotator "NA RC"]
[PlyCount "117"]
[EventDate "2024.12.23"]
[EventType "team-tourn"]
[EventRounds "7"]
[EventCountry "GER"]
[SourceTitle "playchess.com"]
[Source "ChessBase"]
[SourceQuality "1"]
[TimeControl "40/5400+30:1800+30"]

1. e4 {[%emt 0:00:12]} c5 {[%emt 0:00:05]} 2. Nf3 {[%emt 0:00:35]} Nc6 {[%emt 0:00:36]} 3. Bb5 {[%emt 0:00:31]} Nf6 {[%emt 0:00:30]} 4. Nc3 {[%emt 0:00:59]} d6 {[%emt 0:02:15]} 5. Bxc6+ {[%emt 0:01:48]} bxc6 {[%emt 0:00:06]} 6. d3 {[%emt 0:01:32]} e5 {[%emt 0:00:51]} 7. Bg5 {[%emt 0:04:16]} g6 {[%emt 0:00:13]} 8. O-O {[%emt 0:03:11]} Bg7 {[%emt 0:00:20]} 9. h3 {[%emt 0:03:02]} O-O {[%emt 0:00:21]} 10. Qd2 {[%emt 0:02:57]} Re8 {[%emt 0:03:08]} 11. Bh6 {[%emt 0:03:00]} d5 {[%emt 0:02:42]} 12. Bxg7 {[%emt 0:03:28]} Kxg7 {[%emt 0:00:49]} 13. Rfe1 {[%emt 0:03:06]} d4 {[%emt 0:05:42]} 14. Ne2 {[%emt 0:03:37]} a5 {[%emt 0:06:54]} 15. a4 {[%emt 0:09:21]} c4 {[%emt 0:01:58]} 16. Ng3 {[%emt 0:02:35]} cxd3 {[%emt 0:08:09]} 17. cxd3 {[%emt 0:03:16]} h6 {[%emt 0:04:18]} 18. Rec1 {[%emt 0:03:23]} Qd6 {[%emt 0:02:42]} 19. Rab1 {[%emt 0:05:49]} c5 {[%emt 0:02:13]} 20. b3 {[%emt 0:04:22]} Be6 {[%emt 0:04:56]} 21. Rb2 {[%emt 0:01:57]} Nd7 {[%emt 0:01:27]} 22. Nh4 {[%emt 0:04:15]} Rf8 {[%emt 0:02:42]} 23. Rf1 {[%emt 0:04:54]} f5 {[%emt 0:17:01]} 24. f4 {[%emt 0:02:50]} Qc7 {[%emt 0:05:54]} 25. fxe5 {[%emt 0:03:16]} Qxe5 {[%emt 0:01:56]} 26. Qf4 {[%emt 0:03:32]} fxe4 {[%emt 0:04:05]} 27. Qxe5+ {[%emt 0:01:59]} Nxe5 {[%emt 0:02:47]} 28. Rxf8 {[%emt 0:00:51]} Rxf8 {[%emt 0:00:14]} 29. dxe4 {[%emt 0:01:32]} d3 {[%emt 0:00:57]} 30. Nf1 {[%emt 0:02:33]} Rf4 {[%emt 0:01:21]} 31. Nf3 {[%emt 0:01:03]} Nxf3+ {[%emt 0:00:59]} 32. gxf3 {[%emt 0:00:07]} Rxf3 {[%emt 0:00:31]} 33. Nd2 {[%emt 0:01:20]} Rxh3 {[%emt 0:00:57]} 34. Kg2 {[%emt 0:00:35]} Re3 {[%emt 0:00:32]} 35. Kf2 {[%emt 0:00:10]} Re2+ {[%emt 0:00:25]} 36. Kf3 {[%emt 0:00:33]} Bxb3 {[%emt 0:01:29]} 37. Rxb3 {[%emt 0:00:49]} Rxd2 {[%emt 0:00:12]} 38. e5 {[%emt 0:00:45]} Kf7 {[%emt 0:00:31]} 39. Ke4 {[%emt 0:00:37]} Rd1 {[%emt 0:00:19]} 40. Kd5 {[%emt 0:00:21]} d2 {[%emt 0:00:32]} 41. e6+ {[%emt 0:30:44]} Kf6 {[%emt 0:31:21]} 42. Rf3+ {[%emt 0:00:21]} Kg5 {[%emt 0:00:18]} 43. Rd3 {[%emt 0:00:45]} Kf6 {[%emt 0:06:28]} 44. Rf3+ {[%emt 0:02:58]} Ke7 {[%emt 0:00:11]} 45. Rf7+ {[%emt 0:00:08]} Ke8 {[%emt 0:00:05]} 46. Rf2 {[%emt 0:00:23]} h5 {[%emt 0:00:24]} 47. Kd6 {[%emt 0:00:14]} Rb1 {[%emt 0:08:27]} 48. Rxd2 {[%emt 0:03:18]} h4 {[%emt 0:00:00]} 49. Ke5 {[%emt 0:00:00]} Re1+ {[%emt 0:00:00]} 50. Kf6 {[%emt 0:00:00]} Rf1+ {[%emt 0:00:00]} 51. Ke5 {[%emt 0:00:00]} Rf5+ {[%emt 0:00:00]} 52. Kd6 {[%emt 0:00:00]} g5 {[%emt 0:00:00]} 53. Rb2 {[%emt 0:00:00]} Kf8 {[%emt 0:00:00]} 54. Rb8+ {[%emt 0:00:00]} Kg7 {[%emt 0:00:00]} 55. e7 {[%emt 0:00:00]} c4 {[%emt 0:00:00]} 56. e8=Q {[%emt 0:00:00]} c3 {[%emt 0:00:00]} 57. Qh8+ {[%emt 0:00:00]} Kg6 {[%emt 0:00:00]} 58. Rg8+ {[%emt 0:00:00]} Kf7 {[%emt 0:00:00]} 59. Qg7# {[%emt 0:00:25]} 1-0

[Event "DVM U12 2024"]
[Site "Heidelberg"]
[Date "2024.12.29"]
[Round "5"]
[White "Tuktamyshev, Timur"]
[Black "Rudnizki, Valentin"]
[Result "1-0"]
[ECO "B33"]
[WhiteElo "1531"]
[BlackElo "1448"]
[Annotator "NA"]
[PlyCount "111"]
[EventDate "2024.12.23"]
[EventType "team-tourn"]
[EventRounds "7"]
[EventCountry "GER"]
[SourceTitle "playchess.com"]
[Source "ChessBase"]
[SourceQuality "1"]
[TimeControl "40/5400+30:1800+30"]

1. e4 {[%emt 0:00:02]} c5 {[%emt 0:00:06]} 2. Nf3 {[%emt 0:00:04]} Nc6 {[%emt 0:00:11]} 3. d4 {[%emt 0:00:02]} cxd4 {[%emt 0:00:15]} 4. Nxd4 {[%emt 0:00:07]} e5 {[%emt 0:00:42]} 5. Nb5 {[%emt 0:00:08]} d6 {[%emt 0:00:14]} 6. N1c3 {[%emt 0:00:17]} Nf6 {[%emt 0:00:43]} 7. Bg5 {[%emt 0:00:19]} Be7 {[%emt 0:00:39]} 8. Bxf6 {[%emt 0:01:08]} gxf6 {[%emt 0:01:01]} 9. Nd5 {[%emt 0:01:30]} O-O {[%emt 0:01:01]} 10. Nxe7+ {[%emt 0:09:12]} Qxe7 {[%emt 0:00:54]} 11. Qxd6 {[%emt 0:00:18]} Qxd6 {[%emt 0:00:28]} 12. Nxd6 {[%emt 0:00:02]} Rd8 {[%emt 0:00:11]} 13. O-O-O {[%emt 0:01:48]} Nd4 {[%emt 0:00:37]} 14. Nb5 {[%emt 0:01:44]} Be6 {[%emt 0:01:11]} 15. Nxd4 {[%emt 0:00:48]} exd4 {[%emt 0:00:12]} 16. Bd3 {[%emt 0:00:24]} Rac8 {[%emt 0:00:42]} 17. Rhe1 {[%emt 0:02:37]} Bxa2 {[%emt 0:03:44]} 18. e5 {[%emt 0:02:50]} fxe5 {[%emt 0:01:26]} 19. Rxe5 {[%emt 0:00:11]} Kg7 {[%emt 0:01:20]} 20. Ra5 {[%emt 0:02:13]} Bd5 {[%emt 0:01:38]} 21. Rxa7 {[%emt 0:00:48]} Bc6 {[%emt 0:02:47]} 22. Ra5 {[%emt 0:01:34]} b6 {[%emt 0:00:40]} 23. Rg5+ {[%emt 0:00:21]} Kh6 {[%emt 0:01:11]} 24. f4 {[%emt 0:03:35]} Rd5 {[%emt 0:00:56]} 25. Rxd5 {[%emt 0:00:18]} Bxd5 {[%emt 0:00:25]} 26. g3 {[%emt 0:00:11]} Bc6 {[%emt 0:00:30]} 27. Bf5 {[%emt 0:00:37]} Rd8 {[%emt 0:01:33]} 28. c3 {[%emt 0:00:50]} d3 {[%emt 0:00:52]} 29. Rxd3 {[%emt 0:00:27]} Re8 {[%emt 0:01:45]} 30. Rd6+ {[%emt 0:00:17]} Kg7 {[%emt 0:00:53]} 31. Rxc6 {[%emt 0:00:06]} Re1+ {[%emt 0:00:15]} 32. Kd2 {[%emt 0:00:01]} Rh1 {[%emt 0:00:17]} 33. h3 {[%emt 0:00:20]} Rh2+ {[%emt 0:00:08]} 34. Kc1 {[%emt 0:00:08]} Rh1+ {[%emt 0:00:16]} 35. Kc2 {[%emt 0:00:03]} Rh2+ {[%emt 0:00:33]} 36. Kb3 {[%emt 0:00:05]} Rg2 {[%emt 0:00:08]} 37. g4 {[%emt 0:00:12]} Rf2 {[%emt 0:00:14]} 38. Rc4 {[%emt 0:00:08]} Rh2 {[%emt 0:00:10]} 39. g5 {[%emt 0:00:05]} b5 {[%emt 0:00:28]} 40. Re4 {[%emt 0:00:18]} b4 {[%emt 0:00:25]} 41. Rxb4 {[%emt 0:30:06]} f6 {[%emt 0:30:10]} 42. Rb7+ {[%emt 0:00:06]} Kf8 {[%emt 0:00:44]} 43. gxf6 {[%emt 0:00:25]} Re2 {[%emt 0:00:14]} 44. Bxh7 {[%emt 0:00:14]} Re8 {[%emt 0:00:53]} 45. Bg6 {[%emt 0:00:09]} Ra8 {[%emt 0:00:31]} 46. f7 {[%emt 0:00:14]} Rc8 {[%emt 0:00:24]} 47. Rb6 {[%emt 0:00:26]} Kg7 {[%emt 0:00:18]} 48. Re6 {[%emt 0:00:09]} Rb8+ {[%emt 0:00:57]} 49. Kc2 {[%emt 0:00:05]} Rb7 {[%emt 0:01:26]} 50. Re8 {[%emt 0:00:10]} Kxg6 {[%emt 0:00:45]} 51. f8=Q {[%emt 0:00:01]} Kh5 {[%emt 0:00:52]} 52. Re6 {[%emt 0:00:23]} Kh4 {[%emt 0:00:56]} 53. Qf5 {[%emt 0:00:29]} Kg3 {[%emt 0:00:50]} 54. Qg4+ {[%emt 0:00:08]} Kf2 {[%emt 0:00:27]} 55. Re2+ {[%emt 0:00:09]} Kf1 {[%emt 0:01:20]} 56. Qg2# {[%emt 0:01:00]} 1-0

[Event "DVM U12 2024"]
[Site "Heidelberg"]
[Date "2024.12.29"]
[Round "5"]
[White "Satti, Shahroz"]
[Black "Kesavan, Sarvesh"]
[Result "0-1"]
[ECO "D11"]
[WhiteElo "1525"]
[BlackElo "1721"]
[Annotator "NA RC"]
[PlyCount "140"]
[EventDate "2024.12.23"]
[EventType "team-tourn"]
[EventRounds "7"]
[EventCountry "GER"]
[SourceTitle "playchess.com"]
[Source "ChessBase"]
[SourceQuality "1"]
[TimeControl "40/5400+30:1800+30"]

1. d4 {[%emt 0:00:05]} Nf6 {[%emt 0:00:23]} 2. Nf3 {[%emt 0:00:15]} d5 {[%emt 0:00:27]} 3. g3 {[%emt 0:00:37]} Bf5 {[%emt 0:00:24]} 4. Bg2 {[%emt 0:00:19]} h6 {[%emt 0:03:06]} 5. O-O {[%emt 0:00:24]} e6 {[%emt 0:03:43]} 6. Nbd2 {[%emt 0:00:45]} Bd6 {[%emt 0:01:07]} 7. c4 {[%emt 0:00:40]} c6 {[%emt 0:03:43]} 8. b3 {[%emt 0:00:29]} O-O {[%emt 0:00:59]} 9. Bb2 {[%emt 0:00:25]} Nbd7 {[%emt 0:02:08]} 10. Re1 {[%emt 0:03:16]} Re8 {[%emt 0:02:37]} 11. Nh4 {[%emt 0:10:44]} Bh7 {[%emt 0:03:16]} 12. f4 {[%emt 0:02:04]} Bc7 {[%emt 0:05:40]} 13. Bc3 {[%emt 0:04:53]} Nb6 {[%emt 0:07:08]} 14. c5 {[%emt 0:01:04]} Nc8 {[%emt 0:01:15]} 15. b4 {[%emt 0:01:34]} Ne7 {[%emt 0:05:08]} 16. e3 {[%emt 0:01:43]} Nf5 {[%emt 0:10:28]} 17. Nhf3 {[%emt 0:01:40]} Nd7 {[%emt 0:07:32]} 18. a3 {[%emt 0:03:01]} f6 {[%emt 0:07:09]} 19. Nb3 {[%emt 0:07:56]} e5 {[%emt 0:06:48]} 20. Nfd2 {[%emt 0:04:23]} exd4 {[%emt 0:02:54]} 21. Nxd4 {[%emt 0:00:45]} Nxe3 {[%emt 0:01:38]} 22. Qf3 {[%emt 0:02:20]} Nxg2 {[%emt 0:02:51]} 23. Qxg2 {[%emt 0:00:24]} Rxe1+ {[%emt 0:03:41]} 24. Rxe1 {[%emt 0:00:13]} Nf8 {[%emt 0:01:00]} 25. N2b3 {[%emt 0:02:13]} Qd7 {[%emt 0:01:38]} 26. Na5 {[%emt 0:04:04]} Re8 {[%emt 0:02:52]} 27. Rxe8 {[%emt 0:00:43]} Qxe8 {[%emt 0:00:14]} 28. Qd2 {[%emt 0:01:51]} Bxa5 {[%emt 0:06:17]} 29. bxa5 {[%emt 0:00:12]} Nd7 {[%emt 0:00:30]} 30. Bb4 {[%emt 0:00:43]} Nf8 {[%emt 0:02:34]} 31. Kf1 {[%emt 0:00:58]} Ne6 {[%emt 0:01:23]} 32. Qe3 {[%emt 0:00:50]} Be4 {[%emt 0:01:03]} 33. Qd2 {[%emt 0:01:02]} Nxd4 {[%emt 0:01:13]} 34. Qxd4 {[%emt 0:00:14]} Qh5 {[%emt 0:00:30]} 35. Qf2 {[%emt 0:00:57]} Qd1+ {[%emt 0:00:54]} 36. Qe1 {[%emt 0:00:24]} Qf3+ {[%emt 0:00:23]} 37. Qf2 {[%emt 0:00:14]} Qh1+ {[%emt 0:00:29]} 38. Qg1 {[%emt 0:00:39]} Qxg1+ {[%emt 0:01:12]} 39. Kxg1 {[%emt 0:00:09]} Kf7 {[%emt 0:00:05]} 40. Kf2 {[%emt 0:00:12]} Ke6 {[%emt 0:00:18]} 41. g4 {[%emt 0:31:45]} d4 {[%emt 0:04:20]} 42. Ke2 {[%emt 0:00:00]} Kd5 {[%emt 0:00:13]} 43. h3 {[%emt 0:02:52]} Kc4 {[%emt 0:00:31]} 44. Kd2 {[%emt 0:00:00]} g5 {[%emt 0:01:30]} 45. fxg5 {[%emt 0:00:00]} fxg5 {[%emt 0:01:35]} 46. Ke2 {[%emt 0:00:00]} Bg2 {[%emt 0:00:20]} 47. Kf2 {[%emt 0:00:00]} Bxh3 {[%emt 0:00:17]} 48. Kf3 {[%emt 0:00:00]} d3 {[%emt 0:00:52]} 49. Kg3 {[%emt 0:00:00]} Kb3 {[%emt 0:03:47]} 50. Kf3 {[%emt 0:00:00]} Kc2 {[%emt 0:00:11]} 51. Ke3 {[%emt 0:00:00]} Bxg4 {[%emt 0:00:07]} 52. Bd2 {[%emt 0:00:00]} h5 {[%emt 0:00:31]} 53. Bb4 {[%emt 0:00:00]} h4 {[%emt 0:00:33]} 54. Be1 {[%emt 0:00:00]} h3 {[%emt 0:00:08]} 55. Kf2 {[%emt 0:00:00]} d2 {[%emt 0:00:06]} 56. Bxd2 {[%emt 0:00:00]} Kxd2 {[%emt 0:00:04]} 57. Kg3 {[%emt 0:00:00]} Bc8 {[%emt 0:00:08]} 58. Kh2 {[%emt 0:00:00]} Kc3 {[%emt 0:01:33]} 59. Kg3 {[%emt 0:00:00]} Kc4 {[%emt 0:00:11]} 60. Kh2 {[%emt 0:00:00]} Kxc5 {[%emt 0:00:06]} 61. Kg3 {[%emt 0:00:00]} Kb5 {[%emt 0:00:26]} 62. Kh2 {[%emt 0:00:00]} c5 {[%emt 0:00:05]} 63. Kh1 {[%emt 0:00:00]} c4 {[%emt 0:00:06]} 64. Kg1 {[%emt 0:00:00]} c3 {[%emt 0:00:05]} 65. Kf1 {[%emt 0:00:00]} c2 {[%emt 0:00:10]} 66. Ke2 {[%emt 0:00:00]} c1=Q {[%emt 0:00:11]} 67. Kf2 {[%emt 0:00:00]} h2 {[%emt 0:00:12]} 68. Kg2 {[%emt 0:00:00]} Qe1 {[%emt 0:01:10]} 69. a4+ {[%emt 0:00:00]} Kxa5 {[%emt 0:00:22]} 70. Kf3 {[%emt 0:00:00]} h1=B# {[%emt 0:01:02]} 0-1

[Event "DVM U12 2024"]
[Site "Heidelberg"]
[Date "2024.12.29"]
[Round "5"]
[White "Tiuca, Emma"]
[Black "Kuhns, David"]
[Result "1-0"]
[ECO "C78"]
[WhiteElo "1472"]
[BlackElo "1904"]
[Annotator "NA"]
[PlyCount "89"]
[EventDate "2024.12.23"]
[EventType "team-tourn"]
[EventRounds "7"]
[EventCountry "GER"]
[SourceTitle "playchess.com"]
[Source "ChessBase"]
[SourceQuality "1"]
[TimeControl "40/5400+30:1800+30"]

1. e4 {[%emt 0:00:05]} e5 {[%emt 0:00:00]} 2. Nf3 {[%emt 0:00:14]} Nc6 {[%emt 0:00:00]} 3. Bb5 {[%emt 0:00:17]} a6 {[%emt 0:00:00]} 4. Ba4 {[%emt 0:00:15]} Nf6 {[%emt 0:00:00]} 5. O-O {[%emt 0:00:22]} d5 {[%emt 0:00:25]} 6. Nxe5 {[%emt 0:02:28]} Bd7 {[%emt 0:00:13]} 7. Nxd7 {[%emt 0:00:47]} Qxd7 {[%emt 0:00:14]} 8. e5 {[%emt 0:00:40]} Ne4 {[%emt 0:00:51]} 9. d4 {[%emt 0:03:08]} f6 {[%emt 0:00:54]} 10. Bf4 {[%emt 0:09:51]} g5 {[%emt 0:00:46]} 11. Be3 {[%emt 0:02:14]} O-O-O {[%emt 0:00:54]} 12. f3 {[%emt 0:00:55]} fxe5 {[%emt 0:04:19]} 13. fxe4 {[%emt 0:00:37]} exd4 {[%emt 0:00:09]} 14. Bxd4 {[%emt 0:00:27]} Rg8 {[%emt 0:00:19]} 15. c3 {[%emt 0:00:55]} b5 {[%emt 0:02:28]} 16. Bb3 {[%emt 0:00:52]} Nxd4 {[%emt 0:01:13]} 17. cxd4 {[%emt 0:00:58]} c6 {[%emt 0:01:44]} 18. exd5 {[%emt 0:00:40]} cxd5 {[%emt 0:00:17]} 19. Nd2 {[%emt 0:00:27]} Bg7 {[%emt 0:01:15]} 20. Rc1+ {[%emt 0:01:47]} Kb8 {[%emt 0:00:42]} 21. Nf3 {[%emt 0:00:33]} g4 {[%emt 0:00:53]} 22. Ne5 {[%emt 0:00:13]} Bxe5 {[%emt 0:01:03]} 23. dxe5 {[%emt 0:00:06]} Qa7+ {[%emt 0:01:19]} 24. Kh1 {[%emt 0:00:23]} Rg6 {[%emt 0:00:54]} 25. Rf6 {[%emt 0:00:38]} Qd7 {[%emt 0:02:44]} 26. Qd4 {[%emt 0:02:31]} g3 {[%emt 0:01:04]} 27. h3 {[%emt 0:01:09]} Rc8 {[%emt 0:00:36]} 28. Qb6+ {[%emt 0:00:40]} Qb7 {[%emt 0:00:47]} 29. Rxc8+ {[%emt 0:00:08]} Kxc8 {[%emt 0:00:43]} 30. Rf8+ {[%emt 0:00:06]} Kd7 {[%emt 0:00:38]} 31. Qxb7+ {[%emt 0:00:12]} Ke6 {[%emt 0:00:28]} 32. Re8+ {[%emt 0:00:07]} Kf5 {[%emt 0:00:17]} 33. Bc2+ {[%emt 0:00:05]} Kf4 {[%emt 0:00:10]} 34. Qf7+ {[%emt 0:00:34]} Ke3 {[%emt 0:00:41]} 35. Bxg6 {[%emt 0:00:05]} hxg6 {[%emt 0:00:23]} 36. Qa7+ {[%emt 0:00:11]} Ke2 {[%emt 0:00:49]} 37. Qd4 {[%emt 0:00:23]} b4 {[%emt 0:00:17]} 38. b3 {[%emt 0:00:08]} a5 {[%emt 0:01:27]} 39. Rg8 {[%emt 0:00:51]} a4 {[%emt 0:00:06]} 40. bxa4 {[%emt 0:00:05]} b3 {[%emt 0:00:04]} 41. axb3 {[%emt 0:30:07]} g5 {[%emt 0:30:07]} 42. Rxg5 {[%emt 0:00:08]} Ke1 {[%emt 0:00:39]} 43. e6 {[%emt 0:00:11]} Ke2 {[%emt 0:00:38]} 44. Re5+ {[%emt 0:00:24]} Kf1 {[%emt 0:00:04]} 45. Qg1# {[%emt 0:00:08]} 1-0

[Event "DVM U12 2024"]
[Site "Heidelberg"]
[Date "2024.12.29"]
[Round "5"]
[White "Kurakin, Martin"]
[Black "Winklmann, Alexander"]
[Result "0-1"]
[ECO "C45"]
[WhiteElo "1389"]
[BlackElo "1593"]
[Annotator "NA"]
[PlyCount "94"]
[EventDate "2024.12.23"]
[EventType "team-tourn"]
[EventRounds "7"]
[EventCountry "GER"]
[SourceTitle "playchess.com"]
[Source "ChessBase"]
[SourceQuality "1"]
[TimeControl "40/5400+30:1800+30"]

1. e4 {[%emt 0:00:01]} e5 {[%emt 0:00:11]} 2. Nf3 {[%emt 0:00:11]} Nc6 {[%emt 0:00:07]} 3. d4 {[%emt 0:00:12]} exd4 {[%emt 0:00:09]} 4. Nxd4 {[%emt 0:00:05]} Bc5 {[%emt 0:00:09]} 5. Nb3 {[%emt 0:00:15]} Bb6 {[%emt 0:00:40]} 6. Nc3 {[%emt 0:00:11]} Nf6 {[%emt 0:00:49]} 7. Bf4 {[%emt 0:01:52]} O-O {[%emt 0:01:35]} 8. Qd2 {[%emt 0:00:22]} Re8 {[%emt 0:02:05]} 9. f3 {[%emt 0:00:13]} d5 {[%emt 0:04:45]} 10. Bg5 {[%emt 0:00:34]} dxe4 {[%emt 0:10:13]} 11. Qxd8 {[%emt 0:00:21]} Nxd8 {[%emt 0:01:41]} 12. fxe4 {[%emt 0:01:49]} Nxe4 {[%emt 0:01:30]} 13. Nxe4 {[%emt 0:02:45]} Rxe4+ {[%emt 0:00:59]} 14. Kd2 {[%emt 0:00:24]} Nc6 {[%emt 0:01:12]} 15. Bd3 {[%emt 0:00:41]} Rg4 {[%emt 0:00:43]} 16. Rhe1 {[%emt 0:00:32]} Rxg2+ {[%emt 0:00:35]} 17. Kc3 {[%emt 0:00:09]} Be6 {[%emt 0:01:11]} 18. Be3 {[%emt 0:01:51]} Bxb3 {[%emt 0:01:30]} 19. Bxb6 {[%emt 0:00:22]} axb6 {[%emt 0:01:18]} 20. cxb3 {[%emt 0:00:33]} Rxh2 {[%emt 0:01:23]} 21. Re3 {[%emt 0:01:29]} Rh5 {[%emt 0:02:46]} 22. Rae1 {[%emt 0:03:24]} g6 {[%emt 0:00:16]} 23. Re8+ {[%emt 0:02:01]} Rxe8 {[%emt 0:00:18]} 24. Rxe8+ {[%emt 0:00:06]} Kg7 {[%emt 0:00:06]} 25. Rc8 {[%emt 0:00:19]} Rc5+ {[%emt 0:00:17]} 26. Kd2 {[%emt 0:00:12]} Nb4 {[%emt 0:00:12]} 27. Be4 {[%emt 0:00:40]} Nxa2 {[%emt 0:01:50]} 28. Bxb7 {[%emt 0:00:36]} Nb4 {[%emt 0:00:12]} 29. Be4 {[%emt 0:01:36]} f5 {[%emt 0:01:51]} 30. Bb1 {[%emt 0:00:35]} h5 {[%emt 0:01:49]} 31. Re8 {[%emt 0:02:23]} Kf6 {[%emt 0:01:28]} 32. Re2 {[%emt 0:16:30]} g5 {[%emt 0:02:35]} 33. Ke3 {[%emt 0:05:47]} Re5+ {[%emt 0:00:10]} 34. Kf3 {[%emt 0:00:29]} Rxe2 {[%emt 0:00:07]} 35. Kxe2 {[%emt 0:00:09]} g4 {[%emt 0:00:07]} 36. Kf2 {[%emt 0:00:02]} Kg5 {[%emt 0:00:09]} 37. Kg1 {[%emt 0:00:55]} Kf4 {[%emt 0:00:28]} 38. Bxf5 {[%emt 0:10:01]} Kxf5 {[%emt 0:00:09]} 39. Kf1 {[%emt 0:00:10]} Kf4 {[%emt 0:00:05]} 40. Kf2 {[%emt 0:00:06]} g3+ {[%emt 0:00:04]} 41. Kg2 {[%emt 0:30:06]} Kg4 {[%emt 0:30:05]} 42. Kg1 {[%emt 0:00:48]} h4 {[%emt 0:00:16]} 43. Kg2 {[%emt 0:00:14]} h3+ {[%emt 0:00:15]} 44. Kg1 {[%emt 0:00:12]} Nd5 {[%emt 0:00:19]} 45. b4 {[%emt 0:00:05]} h2+ {[%emt 0:00:20]} 46. Kh1 {[%emt 0:00:09]} Kh3 {[%emt 0:00:16]} 47. b3 {[%emt 0:00:09]} g2# {[%emt 0:00:05]} 0-1

[Event "DVM U12 2024"]
[Site "Heidelberg"]
[Date "2024.12.29"]
[Round "5"]
[White "Buff, Hannes"]
[Black "Lieberknecht, Pascal"]
[Result "0-1"]
[ECO "C01"]
[WhiteElo "1370"]
[BlackElo "1212"]
[Annotator "NA"]
[PlyCount "72"]
[EventDate "2024.12.23"]
[EventType "team-tourn"]
[EventRounds "7"]
[EventCountry "GER"]
[SourceTitle "playchess.com"]
[Source "ChessBase"]
[SourceQuality "1"]
[TimeControl "40/5400+30:1800+30"]

1. e4 {[%emt 0:00:03]} e6 {[%emt 0:00:04]} 2. d4 {[%emt 0:00:29]} d5 {[%emt 0:00:06]} 3. exd5 {[%emt 0:00:47]} exd5 {[%emt 0:00:08]} 4. Nf3 {[%emt 0:00:58]} Nf6 {[%emt 0:00:06]} 5. Bg5 {[%emt 0:01:12]} Bg4 {[%emt 0:00:17]} 6. h3 {[%emt 0:00:52]} Bh5 {[%emt 0:00:06]} 7. Nbd2 {[%emt 0:02:02]} Bd6 {[%emt 0:00:12]} 8. Qe2+ {[%emt 0:02:46]} Qe7 {[%emt 0:00:08]} 9. Qxe7+ {[%emt 0:01:09]} Bxe7 {[%emt 0:00:08]} 10. g4 {[%emt 0:01:00]} Bg6 {[%emt 0:01:41]} 11. O-O-O {[%emt 0:00:24]} Nc6 {[%emt 0:00:08]} 12. Bb5 {[%emt 0:02:39]} O-O {[%emt 0:02:09]} 13. Bxc6 {[%emt 0:04:08]} bxc6 {[%emt 0:00:08]} 14. Ne5 {[%emt 0:00:17]} a5 {[%emt 0:00:38]} 15. Nxc6 {[%emt 0:00:36]} Bb4 {[%emt 0:01:32]} 16. a4 {[%emt 0:09:43]} Bxd2+ {[%emt 0:01:34]} 17. Rxd2 {[%emt 0:00:18]} Ne4 {[%emt 0:00:13]} 18. Be7 {[%emt 0:03:24]} Rfe8 {[%emt 0:00:07]} 19. Re2 {[%emt 0:02:03]} Ra6 {[%emt 0:00:04]} 20. Ne5 {[%emt 0:01:40]} Rxe7 {[%emt 0:00:27]} 21. Nxg6 {[%emt 0:00:13]} fxg6 {[%emt 0:02:29]} 22. Rhe1 {[%emt 0:00:56]} Rae6 {[%emt 0:00:30]} 23. h4 {[%emt 0:03:26]} Nc5 {[%emt 0:00:04]} 24. Rxe6 {[%emt 0:00:17]} Nxe6 {[%emt 0:00:46]} 25. Kd2 {[%emt 0:00:53]} Kf7 {[%emt 0:00:08]} 26. c3 {[%emt 0:00:46]} c5 {[%emt 0:00:25]} 27. b4 {[%emt 0:07:51]} cxb4 {[%emt 0:00:12]} 28. cxb4 {[%emt 0:00:08]} axb4 {[%emt 0:00:12]} 29. Ra1 {[%emt 0:02:51]} Nxd4 {[%emt 0:00:25]} 30. Kd3 {[%emt 0:02:10]} Nb3 {[%emt 0:00:26]} 31. Ra2 {[%emt 0:00:43]} Na5 {[%emt 0:00:58]} 32. f3 {[%emt 0:00:31]} Ke6 {[%emt 0:01:00]} 33. Kd4 {[%emt 0:00:46]} Kd6 {[%emt 0:00:13]} 34. h5 {[%emt 0:04:13]} g5 {[%emt 0:00:20]} 35. Rc2 {[%emt 0:01:25]} Re8 {[%emt 0:00:32]} 36. Rc5 {[%emt 0:00:19]} Nb3+ {[%emt 0:00:08]} 0-1